bitfinex-derivatives/quotes_BTCF0:USTF0_20250704
["timestamp","ask_amount","ask_price","bid_price","bid_amount"]
[1751642121418,1.81443601,107800.0,107790.0,0.03426908]
[1751642121623,1.84473601,107800.0,107790.0,0.03426908]
[1751642121823,2.29001214,107800.0,107790.0,0.00385537]
[1751642122418,1.93246477,107800.0,107790.0,0.01755349]
[1751642122624,1.93246477,107800.0,107790.0,0.00385537]
[1751642123625,1.93246477,107800.0,107790.0,0.01756227]
[1751642125333,1.93246477,107800.0,107790.0,0.00385537]
[1751642126935,1.93246477,107800.0,107790.0,0.0181929]
[1751642128123,1.93246477,107800.0,107790.0,0.00385537]
[1751642128328,1.93246477,107800.0,107790.0,0.03189385]
[1751642129228,1.93246477,107800.0,107790.0,0.09819286]
[1751642129538,0.59068864,107800.0,107790.0,0.54855686]
[1751642129836,1.81331601,107800.0,107790.0,0.57945686]
[1751642130041,0.37068864,107800.0,107790.0,0.93700423]
[1751642130241,1.23664864,107800.0,107790.0,0.93700423]
[1751642130531,0.2954469,107800.0,107790.0,0.93700423]
[1751642130735,0.1854469,107800.0,107790.0,0.93700423]
[1751642131133,0.1854469,107800.0,107790.0,0.93698138]
[1751642131439,1.1906844,107810.0,107800.0,0.1854467]
[1751642131627,1.54823177,107810.0,107800.0,0.55072598]
[1751642131828,1.5306844,107810.0,107800.0,0.55072598]
[1751642132026,1.54823177,107810.0,107800.0,0.55072598]
[1751642132536,1.54823177,107810.0,107800.0,0.53641134]
[1751642132737,1.1906844,107810.0,107800.0,0.55072536]
[1751642132937,1.54823177,107810.0,107800.0,0.53641134]
[1751642133237,1.54759177,107810.0,107800.0,0.53641134]
[1751642133834,1.54859177,107810.0,107800.0,0.53641134]
[1751642134235,1.1910444,107810.0,107800.0,0.53641134]
[1751642134435,1.54859177,107810.0,107800.0,0.53641134]
[1751642134739,1.54859177,107810.0,107800.0,0.5185467]
[1751642134927,1.55859177,107810.0,107800.0,0.5361199]
[1751642135132,1.88959177,107810.0,107800.0,0.5361199]
[1751642135439,1.55959177,107810.0,107800.0,0.5361199]
[1751642135944,1.87959177,107810.0,107800.0,0.5361199]
[1751642136842,1.62959177,107810.0,107800.0,0.5361199]
[1751642138329,1.62959177,107810.0,107800.0,0.5185467]
[1751642138731,1.62959177,107810.0,107800.0,0.53604513]
[1751642138935,1.85959177,107810.0,107800.0,0.53604513]
[1751642139234,1.5020444,107810.0,107800.0,0.53604513]
[1751642139430,1.85959177,107810.0,107800.0,0.53604513]
[1751642139735,1.90959177,107810.0,107800.0,0.53604513]
[1751642139942,1.92959177,107810.0,107800.0,0.53604513]
[1751642140931,1.92959177,107810.0,107800.0,0.09059843]
[1751642141136,1.92959177,107810.0,107800.0,0.01749843]
[1751642141436,2.02669177,107810.0,107800.0,0.01749843]
[1751642143540,1.84124777,107810.0,107790.0,0.00185537]
[1751642143846,0.57329407,107800.0,107790.0,0.01948359]
[1751642144141,0.96369878,107800.0,107790.0,0.01948359]
[1751642144342,1.56272615,107800.0,107790.0,0.01948359]
[1751642144738,1.58695918,107800.0,107790.0,0.01948359]
[1751642144935,1.22941181,107800.0,107790.0,0.02048359]
[1751642145137,1.22941181,107800.0,107790.0,0.02148359]
[1751642145744,1.22941181,107800.0,107790.0,0.02048359]
[1751642145943,1.23041181,107800.0,107790.0,0.02048359]
[1751642147041,1.30641006,107800.0,107790.0,0.02048359]
[1751642147544,1.66395743,107800.0,107790.0,0.02048359]
[1751642147744,1.66395743,107800.0,107790.0,0.01948359]
[1751642148444,1.33648607,107800.0,107790.0,0.01948359]
[1751642149037,1.33648607,107800.0,107790.0,0.03377557]
[1751642149438,1.30641006,107800.0,107790.0,0.03377557]
[1751642151051,0.07439606,107840.0,107830.0,0.1853952]
[1751642151350,0.1853779,107840.0,107830.0,0.63995533]
[1751642151548,1.74516617,107850.0,107840.0,0.1853779]
[1751642151851,1.4076188,107850.0,107840.0,0.55246988]
[1751642152051,1.85452661,107850.0,107840.0,0.5381779]
[1751642152350,1.85456661,107850.0,107840.0,0.3528]
[1751642152547,2.19456661,107850.0,107840.0,0.0628]
[1751642152742,2.25946661,107850.0,107840.0,0.0628]
[1751642152943,0.1853779,107840.0,107830.0,0.01758825]
[1751642153143,1.87546571,107840.0,107830.0,0.01758825]
[1751642153543,1.4285579,107840.0,107830.0,0.01758825]
[1751642153853,1.4285579,107840.0,107830.0,0.30298335]
[1751642154047,1.4335579,107840.0,107830.0,0.33348335]
[1751642154242,1.4335579,107840.0,107830.0,0.14808825]
[1751642154548,1.4335579,107840.0,107830.0,0.04808825]
[1751642154750,1.4335579,107840.0,107830.0,0.05895698]
[1751642155153,1.4365579,107840.0,107830.0,0.05895698]
[1751642155447,1.88346571,107840.0,107830.0,0.02845698]
[1751642155648,1.88346571,107840.0,107830.0,0.0284569]
[1751642156453,0.1854295,107810.0,107800.0,0.2781561]
[1751642156753,0.4954295,107810.0,107800.0,0.6447561]
[1751642157349,0.4954295,107810.0,107800.0,0.5520341]
[1751642157544,0.4954295,107810.0,107800.0,0.0966]
[1751642157745,0.4954295,107810.0,107800.0,0.1176]
[1751642158051,0.4954295,107810.0,107800.0,0.3050467]
[1751642158840,0.4954295,107810.0,107800.0,0.3030467]
[1751642159248,0.4954295,107810.0,107800.0,0.3020467]
[1751642159546,0.4964295,107810.0,107800.0,0.3020467]
[1751642159948,0.94333731,107810.0,107800.0,0.02]
[1751642160152,0.1854467,107800.0,107790.0,0.39066619]
[1751642160454,1.4228867,107800.0,107790.0,0.67637217]
[1751642161148,0.5554467,107800.0,107790.0,1.12327998]
[1751642161353,0.1854467,107800.0,107790.0,1.12327998]
[1751642161556,1.21160275,107810.0,107800.0,0.1854467]
[1751642161748,1.21160275,107810.0,107800.0,0.96465451]
[1751642162148,1.21172275,107810.0,107800.0,0.96465451]
[1751642162753,0.34412275,107810.0,107800.0,0.96465451]
[1751642163054,1.21172275,107810.0,107800.0,0.96465451]
[1751642164056,0.34712275,107810.0,107800.0,0.96465451]
[1751642164252,1.21660275,107810.0,107800.0,0.96465451]
[1751642164556,0.34912275,107810.0,107800.0,0.96465451]
[1751642164749,1.52676275,107810.0,107800.0,0.96465451]
[1751642165254,1.52676275,107810.0,107800.0,0.5177467]
[1751642167456,1.21676275,107810.0,107800.0,0.5177467]
[1751642168358,1.21676275,107810.0,107800.0,0.52861706]
[1751642168557,1.55676275,107810.0,107800.0,0.52861706]
[1751642169260,0.005,107810.0,107800.0,0.52861706]
[1751642169558,0.4001777,107860.0,107830.0,0.06421924]
[1751642169747,1.01189033,107860.0,107850.0,0.1853607]
[1751642169953,1.7470778,107860.0,107850.0,0.46622748]
[1751642170152,0.6370778,107860.0,107850.0,0.53062748]
[1751642170354,1.7470778,107860.0,107850.0,0.53062748]
[1751642170562,1.7470778,107860.0,107850.0,0.31062748]
[1751642170750,1.7540778,107860.0,107850.0,0.26062748]
[1751642171052,1.7580778,107860.0,107850.0,0.55062748]
[1751642171258,1.7620778,107860.0,107850.0,0.55162748]
[1751642171661,1.7580778,107860.0,107850.0,0.55162748]
[1751642171959,1.7640778,107860.0,107850.0,0.32262748]
[1751642172658,1.7640778,107860.0,107850.0,0.53262748]
[1751642172961,1.7640778,107860.0,107850.0,0.33262748]
[1751642174854,1.7640778,107860.0,107850.0,0.14726678]
[1751642175569,0.1853779,107840.0,107830.0,0.20326554]
[1751642175863,1.4120579,107840.0,107830.0,0.36326554]
[1751642176072,1.4120579,107840.0,107830.0,0.42726554]
[1751642176263,1.4120579,107840.0,107830.0,0.45291557]
[1751642176568,1.4120579,107840.0,107830.0,0.89982338]
[1751642177168,1.4120579,107840.0,107830.0,0.45291557]
[1751642177466,0.5493779,107840.0,107830.0,0.45291557]
[1751642178064,0.5493779,107840.0,107830.0,0.89982338]
[1751642178459,0.364,107840.0,107830.0,0.89982338]
[1751642178663,0.1893779,107840.0,107830.0,0.89982338]
[1751642180266,0.004,107840.0,107830.0,0.89982338]
[1751642182173,0.002,107840.0,107830.0,0.89982338]
[1751642182370,0.002,107840.0,107830.0,0.90082338]
[1751642182868,0.3244043,107850.0,107840.0,0.1853779]
[1751642183067,0.3244043,107850.0,107840.0,0.5720779]
[1751642184277,0.3254043,107850.0,107840.0,0.5720779]
[1751642184674,0.3254043,107850.0,107840.0,1.01898571]
[1751642184874,0.3254043,107850.0,107840.0,0.5720779]
[1751642185372,0.2790604,107850.0,107840.0,0.5720779]
[1751642186272,0.6590604,107850.0,107840.0,0.5720779]
[1751642187582,0.6190604,107850.0,107840.0,0.58294429]
[1751642187882,0.2790604,107850.0,107840.0,0.58294429]
[1751642188282,0.6490604,107850.0,107840.0,0.58294429]
[1751642188482,0.2790604,107850.0,107840.0,0.58294429]
[1751642189081,0.6290604,107850.0,107840.0,0.58294429]
[1751642189281,0.2790604,107850.0,107840.0,0.58294429]
[1751642189483,0.67877645,107850.0,107840.0,0.58294429]
[1751642190285,0.30277645,107850.0,107840.0,0.58294429]
[1751642191085,1.10968426,107850.0,107840.0,0.28624429]
[1751642191280,1.20378426,107850.0,107840.0,0.28624429]
[1751642191684,0.84378426,107850.0,107840.0,0.28624429]
[1751642191987,1.07441818,107850.0,107840.0,0.28624429]
[1751642192178,1.05470213,107850.0,107840.0,0.28624429]
[1751642192484,1.07436473,107850.0,107840.0,0.28624429]
[1751642192683,1.43190646,107850.0,107840.0,0.01086639]
[1751642193480,1.45507981,107850.0,107840.0,0.01086639]
[1751642193978,1.18708555,107850.0,107840.0,0.01086639]
[1751642195288,0.1853779,107840.0,107830.0,0.01787424]
[1751642195586,1.9212671,107840.0,107830.0,0.01787424]
[1751642195984,2.1626671,107840.0,107830.0,0.01787424]
[1751642196380,2.18893543,107840.0,107830.0,0.01787424]
[1751642196583,2.2121248,107840.0,107830.0,0.01987424]
[1751642196778,1.0566671,107840.0,107830.0,0.02087424]
[1751642197083,2.1625471,107840.0,107830.0,0.02087424]
[1751642197283,2.18573747,107840.0,107830.0,0.02087424]
[1751642198088,2.18673747,107840.0,107830.0,0.01987424]
[1751642198679,2.18673747,107840.0,107830.0,0.01787424]
[1751642198880,0.1853952,107830.0,107820.0,0.2317653]
[1751642199076,0.66049269,107830.0,107820.0,0.2317653]
[1751642199886,0.66049269,107830.0,107820.0,0.25833898]
[1751642200083,0.66349269,107830.0,107820.0,0.25933898]
[1751642200279,0.66349269,107830.0,107820.0,0.2327653]
[1751642200481,0.66349269,107830.0,107820.0,0.001]
[1751642200680,0.66349269,107830.0,107820.0,0.2064125]
[1751642200881,1.11058189,107830.0,107820.0,0.2064125]
[1751642201590,1.11058189,107830.0,107820.0,0.001]
[1751642201792,1.11058189,107830.0,107820.0,0.2364123]
[1751642201983,1.11058189,107830.0,107820.0,0.2354123]
[1751642202179,1.11258189,107830.0,107820.0,0.2354123]
[1751642202379,1.11258189,107830.0,107820.0,0.05]
[1751642202592,0.1854125,107820.0,107810.0,0.41691439]
[1751642202791,1.4337525,107820.0,107810.0,0.72691439]
[1751642204383,1.4337525,107820.0,107810.0,0.32421369]
[1751642204696,1.8808417,107820.0,107810.0,0.29293947]
[1751642204892,1.4337525,107820.0,107810.0,0.29293947]
[1751642205094,1.8818417,107820.0,107810.0,0.10750967]
[1751642205591,1.8818417,107820.0,107810.0,0.20293937]
[1751642205984,1.4347525,107820.0,107810.0,0.20293937]
[1751642206582,0.5064125,107820.0,107810.0,0.21293937]
[1751642206782,0.01949749,107830.0,107820.0,0.1854123]
[1751642206993,0.0660048,107850.0,107820.0,0.1854123]
[1751642206994,0.2050375,107850.0,107840.0,0.1853779]
[1751642207294,0.2050233,107850.0,107840.0,0.9633343]
[1751642207592,0.2050233,107850.0,107840.0,1.0591343]
[1751642207894,0.5450233,107850.0,107840.0,0.6120451]
[1751642208394,0.2372233,107850.0,107840.0,0.6120451]
[1751642208788,0.5872233,107850.0,107840.0,0.6120451]
[1751642208989,0.2050233,107850.0,107840.0,0.6120451]
[1751642209294,0.2060233,107850.0,107840.0,0.6120451]
[1751642209797,0.5570233,107850.0,107840.0,0.6120451]
[1751642210397,0.5770233,107850.0,107840.0,0.6120451]
[1751642211397,0.2070233,107850.0,107840.0,0.6120451]
[1751642212098,0.2070233,107850.0,107840.0,0.6011779]
[1751642212893,0.5170233,107850.0,107840.0,0.6011779]
[1751642213096,0.2070233,107850.0,107840.0,0.6011779]
[1751642213899,0.5570233,107850.0,107840.0,0.6011779]
[1751642214598,0.2870233,107850.0,107840.0,0.6011779]
[1751642214797,0.5170233,107850.0,107840.0,0.6011779]
[1751642214992,0.5470233,107850.0,107840.0,0.6011779]
[1751642215386,0.2070233,107850.0,107840.0,0.6011779]
[1751642215792,0.2070233,107850.0,107840.0,1.0482671]
[1751642216196,0.5470233,107850.0,107840.0,1.0482671]
[1751642216394,0.5470233,107850.0,107840.0,0.6011779]
[1751642216395,0.5870233,107850.0,107840.0,0.6011779]
[1751642216601,0.2070233,107850.0,107840.0,0.6011779]
[1751642217096,0.5370233,107850.0,107840.0,0.6011779]
[1751642217905,0.2070233,107850.0,107840.0,0.6011779]
[1751642218407,0.5870233,107850.0,107840.0,0.6011779]
[1751642219507,1.0341125,107850.0,107840.0,0.1458]
[1751642219717,1.0946125,107850.0,107840.0,0.3311782]
[1751642220213,1.0946125,107850.0,107840.0,0.3411782]
[1751642220612,1.0641125,107850.0,107840.0,0.6111782]
[1751642220807,1.0641125,107850.0,107840.0,0.1658]
[1751642221003,1.0641125,107850.0,107840.0,0.0958]
[1751642221810,1.0641125,107850.0,107840.0,0.1958]
[1751642221811,0.6170233,107850.0,107840.0,0.1958]
[1751642222011,0.97457302,107850.0,107840.0,0.1958]
[1751642222213,0.1853782,107840.0,107830.0,0.4280738]
[1751642222424,0.90292792,107840.0,107830.0,0.717422]
[1751642222717,0.54292792,107840.0,107830.0,0.717422]
[1751642222909,0.1853782,107840.0,107830.0,0.717422]
[1751642223105,0.1853782,107840.0,107830.0,1.07497172]
[1751642223314,0.4953782,107840.0,107830.0,1.07497172]
[1751642223514,0.1853782,107840.0,107830.0,1.07597172]
[1751642223708,0.1853782,107840.0,107830.0,0.718422]
[1751642223914,0.5553782,107840.0,107830.0,1.07597172]
[1751642224117,0.1853782,107840.0,107830.0,1.07597172]
[1751642227216,0.5453782,107840.0,107830.0,1.07597172]
[1751642227418,0.5453782,107840.0,107830.0,0.6720738]
[1751642227612,1.76492792,107840.0,107830.0,0.104]
[1751642227812,1.79772792,107840.0,107830.0,0.001]
[1751642228026,1.82972792,107840.0,107830.0,0.001]
[1751642228524,1.4721782,107840.0,107830.0,0.001]
[1751642228824,0.1853954,107830.0,107820.0,0.29849837]
[1751642229119,0.1853954,107830.0,107820.0,0.59849837]
[1751642229417,0.1853954,107830.0,107820.0,0.95604809]
[1751642229614,1.1442035,107840.0,107830.0,0.1853954]
[1751642229818,1.1442035,107840.0,107830.0,0.87494512]
[1751642230013,0.2357361,107840.0,107830.0,0.87494512]
[1751642230218,0.2347361,107840.0,107830.0,0.87494512]
[1751642230421,0.2367361,107840.0,107830.0,0.87494512]
[1751642230621,0.1903782,107840.0,107830.0,0.87494512]
[1751642230823,0.005,107840.0,107830.0,0.9489439]
[1751642231022,0.1903782,107840.0,107830.0,0.9489439]
[1751642231219,0.1883782,107840.0,107830.0,0.9489439]
[1751642231522,0.1893782,107840.0,107830.0,0.9489439]
[1751642231711,0.1893782,107840.0,107830.0,0.59139418]
[1751642231919,0.1893782,107840.0,107830.0,1.03825119]
[1751642233027,0.1863782,107840.0,107830.0,1.03825119]
[1751642234224,0.1873782,107840.0,107830.0,1.03825119]
[1751642235226,0.002,107840.0,107830.0,1.03825119]
[1751642236112,0.002,107840.0,107830.0,0.59139418]
[1751642236113,0.1873782,107840.0,107830.0,0.59139418]
[1751642236324,0.1873782,107840.0,107830.0,1.03825119]
[1751642239726,0.1873782,107840.0,107830.0,0.59139418]
[1751642239927,0.1873782,107840.0,107830.0,1.03825119]
[1751642241522,0.1873782,107840.0,107830.0,0.59139418]
[1751642241721,0.1873782,107840.0,107830.0,1.03825119]
[1751642242526,0.002,107840.0,107830.0,1.03825119]
[1751642242931,0.1873783,107840.0,107830.0,1.03825119]
[1751642243928,0.1873783,107840.0,107830.0,1.90205119]
[1751642244322,0.002,107840.0,107830.0,1.90205119]
[1751642245925,0.001,107840.0,107830.0,1.90205119]
[1751642247430,0.2977147,107850.0,107840.0,0.1853783]
[1751642247731,0.2977147,107850.0,107840.0,0.99703531]
[1751642247929,0.2050237,107850.0,107840.0,1.07103409]
[1751642248133,0.1853611,107850.0,107840.0,1.07103409]
[1751642248430,0.1853611,107850.0,107840.0,0.99703531]
[1751642248827,0.1853611,107850.0,107840.0,0.5501783]
[1751642249323,0.2504611,107850.0,107840.0,0.5501783]
[1751642250329,0.2504611,107850.0,107840.0,0.5511783]
[1751642251033,0.2504611,107850.0,107840.0,0.5501783]
[1751642251233,0.2187611,107850.0,107840.0,0.5501783]
[1751642251726,0.2187611,107850.0,107840.0,0.90763126]
[1751642252630,0.2197611,107850.0,107840.0,0.90763126]
[1751642254338,0.2197611,107850.0,107840.0,0.5501783]
[1751642254834,0.2197611,107850.0,107840.0,0.90763126]
[1751642255339,0.2503611,107850.0,107840.0,0.90763126]
[1751642255833,0.2503611,107850.0,107840.0,0.81283126]
[1751642256037,0.2503611,107850.0,107840.0,0.4553783]
[1751642256629,0.60781406,107850.0,107840.0,0.4553783]
[1751642256829,0.97781406,107850.0,107840.0,0.1853783]
[1751642257034,0.97781406,107850.0,107840.0,0.4653782]
[1751642257238,0.99680735,107850.0,107840.0,0.28]
[1751642257735,0.99680735,107850.0,107840.0,0.4653782]
[1751642257942,0.1853782,107840.0,107830.0,0.53789]
[1751642258127,0.99543116,107840.0,107830.0,0.31177]
[1751642258323,0.99543116,107840.0,107830.0,0.00177]
[1751642258833,1.18090316,107840.0,107830.0,0.00177]
[1751642259029,0.1854126,107820.0,107810.0,0.09150845]
[1751642259234,1.72430556,107820.0,107810.0,0.34293947]
[1751642259430,1.81880556,107820.0,107810.0,0.15750967]
[1751642259832,0.1854298,107810.0,107800.0,1.2005596]
[1751642260140,0.5387298,107810.0,107800.0,0.99656082]
[1751642260327,0.2471298,107810.0,107800.0,1.01958317]
[1751642261139,0.2451298,107810.0,107800.0,1.01958317]
[1751642261438,0.2147298,107810.0,107800.0,1.01958317]
[1751642261635,0.2147298,107810.0,107800.0,1.05128317]
[1751642261835,0.1814298,107810.0,107800.0,1.05528317]
[1751642264233,0.1824298,107810.0,107800.0,1.05728317]
[1751642264839,0.5624298,107810.0,107800.0,1.05728317]
[1751642265039,0.2150298,107810.0,107800.0,1.05728317]
[1751642265445,0.2150298,107810.0,107800.0,0.54450961]
[1751642265647,0.5574298,107810.0,107800.0,0.54450961]
[1751642266238,0.2474298,107810.0,107800.0,0.54450961]
[1751642266439,0.5874298,107810.0,107800.0,0.54450961]
[1751642266639,0.6274298,107810.0,107800.0,0.54450961]
[1751642266847,0.2474298,107810.0,107800.0,0.54450961]
[1751642267047,0.5874298,107810.0,107800.0,0.54450961]
[1751642267645,0.5574298,107810.0,107800.0,0.54450961]
[1751642267841,0.2474298,107810.0,107800.0,0.54450961]
[1751642268044,0.6274298,107810.0,107800.0,0.54450961]
[1751642268239,0.2474298,107810.0,107800.0,0.54450961]
[1751642268451,0.5774298,107810.0,107800.0,0.54450961]
[1751642268841,0.2474298,107810.0,107800.0,0.54450961]
[1751642269549,0.6074298,107810.0,107800.0,0.54450961]
[1751642269748,0.2474298,107810.0,107800.0,0.54450961]
[1751642269949,0.6274298,107810.0,107800.0,0.54450961]
[1751642271648,0.94422388,107810.0,107800.0,0.06902235]
[1751642271838,0.94422388,107810.0,107800.0,0.046]
[1751642272348,0.96653305,107810.0,107800.0,0.046]
[1751642272544,0.96653305,107810.0,107800.0,0.006]
[1751642272750,0.185447,107800.0,107790.0,0.00185537]
[1751642272952,1.81373996,107800.0,107790.0,0.00185537]
[1751642273146,1.456287,107800.0,107790.0,0.09185537]
[1751642273451,1.456287,107800.0,107790.0,0.27731957]
[1751642273452,1.81373996,107800.0,107790.0,0.27731957]
[1751642273845,1.81373996,107800.0,107790.0,0.00185537]
[1751642274046,1.81373996,107800.0,107790.0,0.09185537]
[1751642274249,1.81373996,107800.0,107790.0,0.08185537]
[1751642275051,1.455287,107800.0,107790.0,0.08385537]
[1751642275351,1.81273996,107800.0,107790.0,0.00385537]
[1751642275655,1.81273996,107800.0,107790.0,0.09385537]
[1751642275854,1.81273996,107800.0,107790.0,0.00385537]
[1751642276054,1.81273996,107800.0,107790.0,0.10385537]
[1751642276456,1.81273996,107800.0,107790.0,0.00385537]
[1751642276852,1.81373996,107800.0,107790.0,0.00685537]
[1751642278856,1.456287,107800.0,107790.0,0.00685537]
[1751642279057,1.81373996,107800.0,107790.0,0.00685537]
[1751642279852,1.456287,107800.0,107790.0,0.08685537]
[1751642280051,1.81373996,107800.0,107790.0,0.08685537]
[1751642280253,1.81373996,107800.0,107790.0,0.00685537]
[1751642280454,1.81373996,107800.0,107790.0,0.08685537]
[1751642281059,1.81373996,107800.0,107790.0,0.27231957]
[1751642281255,1.81373996,107800.0,107790.0,0.12015537]
[1751642281457,1.81373996,107800.0,107790.0,0.15175537]
[1751642281663,1.81373996,107800.0,107790.0,0.08685537]
[1751642282057,1.456287,107800.0,107790.0,0.27231957]
[1751642282361,1.81373996,107800.0,107790.0,0.00685537]
[1751642282660,1.81373996,107800.0,107790.0,0.08685537]
[1751642282857,1.456287,107800.0,107790.0,0.27231957]
[1751642283058,1.81373996,107800.0,107790.0,0.08685537]
[1751642284261,1.81373996,107800.0,107790.0,0.00685537]
[1751642286161,1.81373996,107800.0,107790.0,0.09685537]
[1751642286965,1.81373996,107800.0,107790.0,0.00685537]
[1751642287552,1.81373996,107800.0,107790.0,0.09685537]
[1751642288158,1.81373996,107800.0,107790.0,0.10685537]
[1751642288459,1.83665376,107800.0,107790.0,0.10685537]
[1751642288663,1.83665376,107800.0,107790.0,0.00685537]
[1751642289468,1.4792008,107800.0,107790.0,0.00685537]
[1751642289667,1.83665376,107800.0,107790.0,0.00685537]
[1751642289867,1.83665376,107800.0,107790.0,0.00485537]
[1751642290067,1.4822008,107800.0,107790.0,0.00285537]
[1751642290270,1.83965376,107800.0,107790.0,0.00285537]
[1751642290469,1.4822008,107800.0,107790.0,0.00285537]
[1751642290664,1.83965376,107800.0,107790.0,0.00285537]
[1751642291163,1.84485376,107800.0,107790.0,0.00285537]
[1751642291765,1.82193996,107800.0,107790.0,0.00285537]
[1751642293971,0.95429996,107800.0,107790.0,0.00285537]
[1751642294162,1.82313996,107800.0,107790.0,0.00285537]
[1751642294363,1.84606676,107800.0,107790.0,0.00285537]
[1751642294567,1.84606676,107800.0,107790.0,0.08285537]
[1751642295470,1.84606676,107800.0,107790.0,0.11595537]
[1751642296472,1.84606676,107800.0,107790.0,0.03595537]
[1751642296668,0.5213738,107800.0,107790.0,0.57887253]
[1751642296873,1.74682676,107800.0,107790.0,0.53291957]
[1751642297173,1.74682676,107800.0,107790.0,0.40291957]
[1751642298275,1.3893738,107800.0,107790.0,0.40291957]
[1751642298481,1.74666676,107800.0,107790.0,0.40291957]
[1751642300183,1.72373996,107800.0,107790.0,0.40291957]
[1751642300381,1.72373996,107800.0,107790.0,0.21745537]
[1751642300581,1.7467105,107800.0,107790.0,0.21745537]
[1751642301371,2.42969986,107800.0,107770.0,0.20327601]
[1751642301583,0.54293446,107780.0,107770.0,0.54994119]
[1751642301778,1.763825,107780.0,107770.0,0.58114119]
[1751642302485,1.40637204,107780.0,107770.0,0.58114119]
[1751642302677,1.763825,107780.0,107770.0,0.58314119]
[1751642303682,1.74185446,107780.0,107770.0,0.58614119]
[1751642303884,1.74185446,107780.0,107770.0,0.16168783]
[1751642304184,1.74085446,107780.0,107770.0,0.15868783]
[1751642304486,1.76484023,107780.0,107770.0,0.11764559]
[1751642305282,1.40738727,107780.0,107770.0,0.11764559]
[1751642305490,1.76484023,107780.0,107770.0,0.11764559]
[1751642305781,1.79704023,107780.0,107770.0,0.11764559]
[1751642305980,1.79704023,107780.0,107770.0,0.30314429]
[1751642306183,1.79704023,107780.0,107770.0,0.11764559]
[1751642306589,1.79704023,107780.0,107770.0,0.30314429]
[1751642307186,1.79704023,107780.0,107770.0,0.38764559]
[1751642307375,1.79704023,107780.0,107770.0,0.09764559]
[1751642307578,1.79704023,107780.0,107770.0,0.28314429]
[1751642307579,1.43958727,107780.0,107770.0,0.28314429]
[1751642307782,1.76484023,107780.0,107770.0,0.57314429]
[1751642307976,1.79480777,107780.0,107770.0,0.05354559]
[1751642308179,1.83655446,107780.0,107770.0,0.01576518]
[1751642308379,1.85950257,107780.0,107770.0,0.01576518]
[1751642309291,1.43718961,107780.0,107770.0,0.52126388]
[1751642309583,1.4145215,107780.0,107770.0,0.58416388]
[1751642309981,1.4155215,107780.0,107770.0,0.58316388]
[1751642310578,1.77197446,107780.0,107770.0,0.39216388]
[1751642310789,1.77297446,107780.0,107770.0,0.39216388]
[1751642310988,1.77297446,107780.0,107770.0,0.57216388]
[1751642311190,1.4155215,107780.0,107770.0,0.57216388]
[1751642311486,1.77337446,107780.0,107770.0,0.57216388]
[1751642312576,1.77357446,107780.0,107770.0,0.57216388]
[1751642312782,1.77357446,107780.0,107770.0,0.16666518]
[1751642313086,1.77357446,107780.0,107770.0,0.26216378]
[1751642313282,1.77357446,107780.0,107770.0,0.56217779]
[1751642314382,1.4161215,107780.0,107770.0,0.56217779]
[1751642314676,1.77357446,107780.0,107770.0,0.56217779]
[1751642316083,1.77357446,107780.0,107770.0,0.07667919]
[1751642316284,1.77357446,107780.0,107770.0,0.16667919]
[1751642316690,1.83887446,107780.0,107770.0,0.16667919]
[1751642316887,1.83887446,107780.0,107770.0,0.58217779]
[1751642317286,1.4814215,107780.0,107770.0,0.58217779]
[1751642317483,1.83887446,107780.0,107770.0,0.58217779]
[1751642317678,1.83887446,107780.0,107770.0,0.34217779]
[1751642317884,1.83887446,107780.0,107770.0,0.58217779]
[1751642319292,1.4814215,107780.0,107770.0,0.58217779]
[1751642319493,1.83887446,107780.0,107770.0,0.58217779]
[1751642320595,1.83887446,107780.0,107770.0,0.39667919]
[1751642320792,1.83887446,107780.0,107770.0,0.16667919]
[1751642320990,1.83887446,107780.0,107770.0,0.35217779]
[1751642321187,1.4814215,107780.0,107770.0,0.35217779]
[1751642321396,1.83887446,107780.0,107770.0,0.35217779]
[1751642321894,1.83887446,107780.0,107770.0,0.59217779]
[1751642322696,1.4814215,107780.0,107770.0,0.59217779]
[1751642322894,1.83887446,107780.0,107770.0,0.59217779]
[1751642325398,1.83887446,107780.0,107770.0,0.5922339]
[1751642326295,1.4814215,107780.0,107770.0,0.5922339]
[1751642326601,1.83759446,107780.0,107770.0,0.5922339]
[1751642326800,1.4801415,107780.0,107770.0,0.5922339]
[1751642326997,1.83759446,107780.0,107770.0,0.5922339]
[1751642328102,1.83759446,107780.0,107770.0,0.0767353]
[1751642328293,1.83759446,107780.0,107770.0,0.0138353]
[1751642328493,1.8605486,107780.0,107770.0,0.02833501]
[1751642328695,1.8605486,107780.0,107770.0,0.04588384]
[1751642330802,1.8605486,107780.0,107770.0,0.02833501]
[1751642332295,1.83759446,107780.0,107770.0,0.02833501]
[1751642332501,1.86056758,107780.0,107770.0,0.02833501]
[1751642336010,1.86056758,107780.0,107770.0,0.08397709]
[1751642336912,1.83759446,107780.0,107770.0,0.08397709]
[1751642337811,1.86052579,107780.0,107770.0,0.08397709]
[1751642345414,1.86052579,107780.0,107770.0,0.08397078]
[1751642348127,1.86052579,107780.0,107770.0,0.07014179]
[1751642350025,1.50307283,107780.0,107770.0,0.07014179]
[1751642350226,1.86052579,107780.0,107770.0,0.07014179]
[1751642355828,1.50307283,107780.0,107770.0,0.07014179]
[1751642356029,1.86052579,107780.0,107770.0,0.07014179]
[1751642357427,1.85716579,107780.0,107770.0,0.07000046]
[1751642357623,1.85716579,107780.0,107770.0,0.10000046]
[1751642357818,1.85716579,107780.0,107770.0,0.13280046]
[1751642358630,1.85716579,107780.0,107770.0,0.11844208]
[1751642363323,0.1855,107770.0,107760.0,0.04998649]
[1751642363530,0.90589664,107770.0,107760.0,0.06375441]
[1751642363832,0.64224368,107770.0,107760.0,0.06375441]
[1751642364028,0.99969664,107770.0,107760.0,0.06375441]
[1751642364335,0.1855172,107760.0,107750.0,0.06415606]
[1751642364632,2.16263699,107760.0,107750.0,0.06378428]
[1751642364823,1.80318403,107760.0,107750.0,0.06378428]
[1751642365024,1.80318403,107760.0,107750.0,0.35378428]
[1751642365224,2.16063699,107760.0,107750.0,0.06378428]
[1751642365633,2.40311699,107760.0,107750.0,0.06478428]
[1751642366134,2.45045804,107760.0,107750.0,0.06478428]
[1751642366728,2.09300508,107760.0,107750.0,0.06478428]
[1751642367037,2.16872627,107760.0,107750.0,0.06678428]
[1751642367639,2.16872627,107760.0,107750.0,0.00448428]
[1751642367836,2.52617923,107760.0,107750.0,0.00448428]
[1751642368536,1.81127331,107760.0,107750.0,0.00448428]
[1751642368736,2.52617923,107760.0,107750.0,0.00448428]
[1751642369537,2.54974823,107760.0,107750.0,0.00448428]
[1751642369744,1.83484231,107760.0,107750.0,0.00448428]
[1751642370039,2.54974823,107760.0,107750.0,0.00448428]
[1751642371033,1.83484231,107760.0,107750.0,0.00448428]
[1751642371234,2.54974823,107760.0,107750.0,0.00448428]
[1751642373836,1.05119527,107760.0,107750.0,0.00448428]
[1751642374142,2.15947527,107760.0,107750.0,0.03718428]
[1751642374340,2.15947527,107760.0,107750.0,0.07038428]
[1751642376240,2.15947527,107760.0,107750.0,0.08421731]
[1751642377644,1.80202231,107760.0,107750.0,0.08421731]